[Event "Titled Tuesday Blitz November 15 Early 2022"]
[White "Gurevich, Dmitry"]
[Black "Pakleza, Zbigniew"]
[WhiteFideId "2000407"]
[BlackFideId "1119290"]
[WhiteElo "2506"]
[BlackElo "2411"]
[Result "1/2-1/2"]
[Round "08"]
[TimeControl "180+1"]
[Date "2022.11.16"]
[WhiteClock "0:00:05"]
[BlackClock "0:00:09"]

1. d4 {[%clk 0:03:00]}  d6 {[%clk 0:02:56]} 2. Nf3 {[%clk 0:02:59]}  Bg4 {[%clk 0:02:56]} 3. g3 {[%clk 0:02:58]}  Bxf3 {[%clk 0:02:56]} 4. exf3 {[%clk 0:02:58]}  e6 {[%clk 0:02:56]} 5. c4 {[%clk 0:02:57]}  c6 {[%clk 0:02:55]} 6. d5 {[%clk 0:02:50]}  exd5 {[%clk 0:02:54]} 7. cxd5 {[%clk 0:02:50]}  c5 {[%clk 0:02:54]} 8. Bh3 {[%clk 0:02:41]}  Be7 {[%clk 0:02:43]} 9. O-O {[%clk 0:02:39]}  Nf6 {[%clk 0:02:43]} 10. Nc3 {[%clk 0:02:38]}  O-O {[%clk 0:02:43]} 11. Re1 {[%clk 0:02:36]}  Re8 {[%clk 0:02:42]} 12. Qd3 {[%clk 0:02:29]}  Na6 {[%clk 0:02:39]} 13. a3 {[%clk 0:02:28]}  Nc7 {[%clk 0:02:36]} 14. Bd2 {[%clk 0:02:25]}  Rb8 {[%clk 0:02:31]} 15. a4 {[%clk 0:02:24]}  a6 {[%clk 0:02:18]} 16. Reb1 {[%clk 0:02:05]}  b5 {[%clk 0:01:33]} 17. axb5 {[%clk 0:02:04]}  axb5 {[%clk 0:01:33]} 18. b4 {[%clk 0:02:03]}  Bf8 {[%clk 0:01:34]} 19. bxc5 {[%clk 0:01:54]}  dxc5 {[%clk 0:01:35]} 20. Nxb5 {[%clk 0:01:47]}  Ncxd5 {[%clk 0:01:25]} 21. f4 {[%clk 0:01:29]}  Nb4 {[%clk 0:01:21]} 22. Qxd8 {[%clk 0:01:25]}  Rexd8 {[%clk 0:01:22]} 23. Bxb4 {[%clk 0:01:12]}  cxb4 {[%clk 0:01:22]} 24. Na7 {[%clk 0:01:08]}  Rb6 {[%clk 0:01:22]} 25. Bg2 {[%clk 0:01:02]}  Rd2 {[%clk 0:01:10]} 26. Nc6 {[%clk 0:00:57]}  g6 {[%clk 0:01:03]} 27. Ne5 {[%clk 0:00:47]}  Rc2 {[%clk 0:00:49]} 28. Rb3 {[%clk 0:00:36]}  Rc3 {[%clk 0:00:13]} 29. Rab1 {[%clk 0:00:34]}  Rxb3 {[%clk 0:00:12]} 30. Rxb3 {[%clk 0:00:34]}  Rd6 {[%clk 0:00:12]} 31. Nd3 {[%clk 0:00:30]}  Rd4 {[%clk 0:00:11]} 32. Bf3 {[%clk 0:00:29]}  Nd5 {[%clk 0:00:10]} 33. Bxd5 {[%clk 0:00:27]}  Rxd5 {[%clk 0:00:11]} 34. Kf1 {[%clk 0:00:26]}  Ra5 {[%clk 0:00:08]} 35. Ke2 {[%clk 0:00:25]}  Kg7 {[%clk 0:00:07]} 36. h4 {[%clk 0:00:22]}  h5 {[%clk 0:00:07]} 37. Ke3 {[%clk 0:00:21]}  Rb5 {[%clk 0:00:06]} 38. Kd4 {[%clk 0:00:20]}  Rb8 {[%clk 0:00:06]} 39. Kc4 {[%clk 0:00:17]}  Kf6 {[%clk 0:00:06]} 40. Nxb4 {[%clk 0:00:13]}  Kf5 {[%clk 0:00:04]} 41. Nd3 {[%clk 0:00:10]}  Rxb3 {[%clk 0:00:04]} 42. Kxb3 {[%clk 0:00:09]}  Ke4 {[%clk 0:00:04]} 43. Kc4 {[%clk 0:00:07]}  Kf3 {[%clk 0:00:03]} 44. Ne5+ {[%clk 0:00:07]}  Kxf2 {[%clk 0:00:04]} 45. Nxf7 {[%clk 0:00:06]}  Kxg3 {[%clk 0:00:05]} 46. Ne5 {[%clk 0:00:07]}  Kxf4 {[%clk 0:00:02]} 47. Nxg6+ {[%clk 0:00:07]}  Kg4 {[%clk 0:00:03]} 48. Nxf8 {[%clk 0:00:06]}  Kxh4 {[%clk 0:00:04]} 49. Ng6+ {[%clk 0:00:04]}  Kg5 {[%clk 0:00:04]} 50. Ne5 {[%clk 0:00:04]}  Kf4 {[%clk 0:00:05]} 51. Ng6+ {[%clk 0:00:05]}  Kf5 {[%clk 0:00:05]} 52. Nh4+ {[%clk 0:00:04]}  Kg4 {[%clk 0:00:06]} 53. Ng2 {[%clk 0:00:05]}  Kf3 {[%clk 0:00:07]} 54. Nh4+ {[%clk 0:00:05]}  Kg4 {[%clk 0:00:08]} 55. Ng2 {[%clk 0:00:05]}  Kg3 {[%clk 0:00:08]} 56. Ne3 {[%clk 0:00:05]}  h4 {[%clk 0:00:08]} 57. Nf5+ {[%clk 0:00:05]}  Kg4 {[%clk 0:00:09]} 58. Nxh4 {[%clk 0:00:05]} 1/2-1/2


[Site "https://www.chess.com"]

[Event "Titled Tuesday Blitz November 15 Early 2022"]
[White "Gurvich, Vitaly"]
[Black "Durarbayli, Vasif"]
[WhiteFideId "24164852"]
[BlackFideId "13402935"]
[WhiteElo "2342"]
[BlackElo "2586"]
[Result "0-1"]
[Round "08"]
[TimeControl "180+1"]
[Date "2022.11.15"]
[WhiteClock "0:00:02"]
[BlackClock "0:00:27"]

1. e4 {[%clk 0:03:00]}  c5 {[%clk 0:03:00]} 2. d4 {[%clk 0:02:57]}  cxd4 {[%clk 0:02:59]} 3. c3 {[%clk 0:02:57]}  dxc3 {[%clk 0:02:53]} 4. Nxc3 {[%clk 0:02:58]}  e6 {[%clk 0:02:48]} 5. Nf3 {[%clk 0:02:57]}  Nc6 {[%clk 0:02:48]} 6. Bc4 {[%clk 0:02:57]}  a6 {[%clk 0:02:47]} 7. O-O {[%clk 0:02:56]}  d6 {[%clk 0:02:47]} 8. Qe2 {[%clk 0:02:56]}  Be7 {[%clk 0:02:30]} 9. Rd1 {[%clk 0:02:54]}  Qc7 {[%clk 0:02:09]} 10. Bf4 {[%clk 0:02:44]}  Ne5 {[%clk 0:02:09]} 11. Bb3 {[%clk 0:02:38]}  Nf6 {[%clk 0:02:03]} 12. Rac1 {[%clk 0:02:36]}  Qb8 {[%clk 0:02:04]} 13. Nd4 {[%clk 0:01:43]}  O-O {[%clk 0:02:01]} 14. h3 {[%clk 0:01:42]}  Bd7 {[%clk 0:01:51]} 15. Be3 {[%clk 0:01:36]}  Rc8 {[%clk 0:01:38]} 16. f4 {[%clk 0:01:33]}  Nc6 {[%clk 0:01:39]} 17. f5 {[%clk 0:01:33]}  Nxd4 {[%clk 0:01:32]} 18. Bxd4 {[%clk 0:01:34]}  e5 {[%clk 0:01:24]} 19. Be3 {[%clk 0:01:14]}  Bc6 {[%clk 0:01:06]} 20. Bg5 {[%clk 0:01:05]}  b5 {[%clk 0:01:06]} 21. Bxf6 {[%clk 0:01:04]}  Bxf6 {[%clk 0:01:07]} 22. Bd5 {[%clk 0:00:42]}  Bg5 {[%clk 0:01:06]} 23. Rc2 {[%clk 0:00:37]}  b4 {[%clk 0:01:04]} 24. Bxc6 {[%clk 0:00:37]}  Qb6+ {[%clk 0:01:00]} 25. Kh2 {[%clk 0:00:22]}  Qxc6 {[%clk 0:01:00]} 26. Qg4 {[%clk 0:00:09]}  Bf4+ {[%clk 0:00:47]} 27. g3 {[%clk 0:00:08]}  Bh6 {[%clk 0:00:48]} 28. Rd3 {[%clk 0:00:02]}  bxc3 {[%clk 0:00:33]} 29. Rdxc3 {[%clk 0:00:03]}  Qb7 {[%clk 0:00:33]} 30. Qe2 {[%clk 0:00:02]}  Rxc3 {[%clk 0:00:32]} 31. Rxc3 {[%clk 0:00:02]}  Rc8 {[%clk 0:00:29]} 32. Qd3 {[%clk 0:00:02]}  Qxb2+ {[%clk 0:00:27]} 0-1


[Site "https://www.chess.com"]

[Event "Titled Tuesday Blitz November 15 Early 2022"]
[White "Hambleton, Aman"]
[Black "Harsha Bharathakoti"]
[WhiteFideId "2606577"]
[BlackFideId "5078776"]
[WhiteElo "2538"]
[BlackElo "2523"]
[Result "0-1"]
[Round "08"]
[TimeControl "180+1"]
[Date "2022.11.16"]
[WhiteClock "0:00:02"]
[BlackClock "0:00:34"]

1. d4 {[%clk 0:03:00]}  Nf6 {[%clk 0:03:00]} 2. Bf4 {[%clk 0:03:00]}  c5 {[%clk 0:02:59]} 3. e3 {[%clk 0:03:00]}  Qb6 {[%clk 0:02:59]} 4. Na3 {[%clk 0:02:58]}  d6 {[%clk 0:03:00]} 5. Nc4 {[%clk 0:02:51]}  Qc7 {[%clk 0:03:00]} 6. a4 {[%clk 0:02:43]}  g6 {[%clk 0:02:58]} 7. h3 {[%clk 0:02:43]}  Bg7 {[%clk 0:02:58]} 8. c3 {[%clk 0:02:43]}  O-O {[%clk 0:02:58]} 9. Nf3 {[%clk 0:02:43]}  Be6 {[%clk 0:02:57]} 10. Ncd2 {[%clk 0:02:41]}  b6 {[%clk 0:02:42]} 11. Bd3 {[%clk 0:02:34]}  Nbd7 {[%clk 0:02:39]} 12. O-O {[%clk 0:02:33]}  cxd4 {[%clk 0:02:35]} 13. exd4 {[%clk 0:02:32]}  Bd5 {[%clk 0:02:33]} 14. Re1 {[%clk 0:02:31]}  Rfe8 {[%clk 0:02:33]} 15. Bh2 {[%clk 0:02:04]}  a6 {[%clk 0:02:21]} 16. c4 {[%clk 0:01:19]}  Bxf3 {[%clk 0:02:06]} 17. Nxf3 {[%clk 0:01:12]}  e5 {[%clk 0:02:07]} 18. Bf1 {[%clk 0:00:53]}  Nh5 {[%clk 0:01:50]} 19. b4 {[%clk 0:00:29]}  a5 {[%clk 0:01:41]} 20. Rb1 {[%clk 0:00:21]}  axb4 {[%clk 0:01:40]} 21. Rxb4 {[%clk 0:00:22]}  exd4 {[%clk 0:01:03]} 22. Rxe8+ {[%clk 0:00:21]}  Rxe8 {[%clk 0:01:04]} 23. Nxd4 {[%clk 0:00:21]}  Qc5 {[%clk 0:01:04]} 24. Nc2 {[%clk 0:00:21]}  Ne5 {[%clk 0:01:04]} 25. Rb5 {[%clk 0:00:19]}  Qc7 {[%clk 0:01:04]} 26. Ne3 {[%clk 0:00:11]}  Nf6 {[%clk 0:01:04]} 27. g4 {[%clk 0:00:04]}  h5 {[%clk 0:00:51]} 28. Be2 {[%clk 0:00:01]}  hxg4 {[%clk 0:00:50]} 29. hxg4 {[%clk 0:00:02]}  Ne4 {[%clk 0:00:42]} 30. Qb3 {[%clk 0:00:03]}  Qd8 {[%clk 0:00:37]} 31. Rxb6 {[%clk 0:00:02]}  Qh4 {[%clk 0:00:37]} 32. Nd1 {[%clk 0:00:02]}  Nxg4 {[%clk 0:00:34]} 33. Bf4 {[%clk 0:00:02]}  Ngxf2 {[%clk 0:00:34]} 34. Bg3 {[%clk 0:00:02]}  Nxg3 {[%clk 0:00:34]} 0-1


[Site "https://www.chess.com"]

[Event "Titled Tuesday Blitz November 15 Early 2022"]
[White "Ibadov, Dashgyn"]
[Black "Levitan, Caleb Levi"]
[WhiteFideId "24107514"]
[BlackFideId "14332620"]
[WhiteElo "2208"]
[BlackElo "1963"]
[Result "1-0"]
[Round "08"]
[TimeControl "180+1"]
[Date "2022.11.16"]
[WhiteClock "0:00:58"]
[BlackClock "0:00:09"]

1. d4 {[%clk 0:03:00]}  Nf6 {[%clk 0:02:56]} 2. c4 {[%clk 0:03:00]}  e6 {[%clk 0:02:56]} 3. Nf3 {[%clk 0:02:58]}  d5 {[%clk 0:02:56]} 4. Nbd2 {[%clk 0:02:54]}  dxc4 {[%clk 0:02:50]} 5. Nxc4 {[%clk 0:02:51]}  b5 {[%clk 0:02:51]} 6. Nce5 {[%clk 0:02:51]}  Bb7 {[%clk 0:02:49]} 7. g3 {[%clk 0:02:36]}  Nbd7 {[%clk 0:02:47]} 8. Nxd7 {[%clk 0:02:25]}  Qxd7 {[%clk 0:02:44]} 9. Bg2 {[%clk 0:02:25]}  c5 {[%clk 0:02:39]} 10. O-O {[%clk 0:02:19]}  cxd4 {[%clk 0:02:39]} 11. Qxd4 {[%clk 0:02:13]}  Qxd4 {[%clk 0:02:35]} 12. Nxd4 {[%clk 0:02:14]}  Bxg2 {[%clk 0:02:34]} 13. Kxg2 {[%clk 0:02:15]}  a6 {[%clk 0:02:34]} 14. a4 {[%clk 0:02:00]}  Bc5 {[%clk 0:02:29]} 15. Nb3 {[%clk 0:01:55]}  Be7 {[%clk 0:01:27]} 16. axb5 {[%clk 0:01:54]}  O-O {[%clk 0:01:27]} 17. bxa6 {[%clk 0:01:49]}  Rfb8 {[%clk 0:01:25]} 18. Nd4 {[%clk 0:01:44]}  Rb6 {[%clk 0:01:09]} 19. a7 {[%clk 0:01:44]}  Bc5 {[%clk 0:01:00]} 20. Be3 {[%clk 0:01:24]}  Rxb2 {[%clk 0:00:59]} 21. Rfb1 {[%clk 0:01:23]}  Rxb1 {[%clk 0:00:55]} 22. Rxb1 {[%clk 0:01:24]}  Rxa7 {[%clk 0:00:14]} 23. Nc6 {[%clk 0:00:59]}  Bxe3 {[%clk 0:00:09]} 24. Rb8+ {[%clk 0:00:58]} 1-0


[Site "https://www.chess.com"]

[Event "Titled Tuesday Blitz November 15 Early 2022"]
[White "Ibarra Jerez, Jose Carlos"]
[Black "Bortnyk, Olexandr"]
[WhiteFideId "2226332"]
[BlackFideId "14120828"]
[WhiteElo "2638"]
[BlackElo "2723"]
[Result "0-1"]
[Round "08"]
[TimeControl "180+1"]
[Date "2022.11.15"]
[WhiteClock "0:00:03"]
[BlackClock "0:00:45"]

1. a3 {[%clk 0:02:59]}  g5 {[%clk 0:02:47]} 2. e4 {[%clk 0:02:55]}  Bg7 {[%clk 0:02:46]} 3. d4 {[%clk 0:02:55]}  e6 {[%clk 0:02:46]} 4. c3 {[%clk 0:02:44]}  b6 {[%clk 0:02:43]} 5. Bd3 {[%clk 0:02:44]}  Bb7 {[%clk 0:02:44]} 6. Ne2 {[%clk 0:02:34]}  d6 {[%clk 0:02:42]} 7. Ng3 {[%clk 0:02:31]}  h6 {[%clk 0:02:38]} 8. Nh5 {[%clk 0:02:30]}  Bf8 {[%clk 0:02:38]} 9. O-O {[%clk 0:02:28]}  Nf6 {[%clk 0:02:29]} 10. Nd2 {[%clk 0:02:14]}  Nbd7 {[%clk 0:02:23]} 11. a4 {[%clk 0:02:10]}  a6 {[%clk 0:02:13]} 12. f4 {[%clk 0:02:04]}  g4 {[%clk 0:02:08]} 13. Nxf6+ {[%clk 0:02:00]}  Nxf6 {[%clk 0:02:03]} 14. e5 {[%clk 0:02:01]}  Nd5 {[%clk 0:02:03]} 15. Ne4 {[%clk 0:01:51]}  f5 {[%clk 0:01:56]} 16. exf6 {[%clk 0:01:49]}  Nxf6 {[%clk 0:01:56]} 17. Qe2 {[%clk 0:01:36]}  Qe7 {[%clk 0:01:31]} 18. Nxf6+ {[%clk 0:01:11]}  Qxf6 {[%clk 0:01:32]} 19. Qxg4 {[%clk 0:01:00]}  O-O-O {[%clk 0:01:32]} 20. Qe2 {[%clk 0:00:52]}  Rg8 {[%clk 0:01:29]} 21. Bxa6 {[%clk 0:00:49]}  Bxa6 {[%clk 0:01:23]} 22. Qxa6+ {[%clk 0:00:49]}  Kd7 {[%clk 0:01:24]} 23. Qb5+ {[%clk 0:00:47]}  c6 {[%clk 0:01:17]} 24. Qxb6 {[%clk 0:00:46]}  Rc8 {[%clk 0:01:13]} 25. a5 {[%clk 0:00:38]}  Be7 {[%clk 0:01:06]} 26. Rf2 {[%clk 0:00:37]}  Qf5 {[%clk 0:00:58]} 27. a6 {[%clk 0:00:35]}  Bh4 {[%clk 0:00:54]} 28. Rd2 {[%clk 0:00:13]}  Qe4 {[%clk 0:00:52]} 29. g3 {[%clk 0:00:03]}  Bxg3 {[%clk 0:00:49]} 30. hxg3 {[%clk 0:00:03]}  Qe1+ {[%clk 0:00:45]} 0-1


[Site "https://www.chess.com"]

[Event "Titled Tuesday Blitz November 15 Early 2022"]
[White "Injac, Teodora"]
[Black "Ezat, Mohamed"]
[WhiteFideId "932400"]
[BlackFideId "10600906"]
[WhiteElo "2286"]
[BlackElo "2386"]
[Result "1/2-1/2"]
[Round "08"]
[TimeControl "180+1"]
[Date "2022.11.16"]
[WhiteClock "0:00:13"]
[BlackClock "0:00:20"]

1. d4 {[%clk 0:02:51]}  Nf6 {[%clk 0:02:59]} 2. Nf3 {[%clk 0:02:51]}  g6 {[%clk 0:03:00]} 3. c4 {[%clk 0:02:50]}  Bg7 {[%clk 0:03:00]} 4. Nc3 {[%clk 0:02:51]}  O-O {[%clk 0:03:01]} 5. e4 {[%clk 0:02:51]}  d6 {[%clk 0:03:01]} 6. Be2 {[%clk 0:02:52]}  e5 {[%clk 0:02:59]} 7. O-O {[%clk 0:02:52]}  Nc6 {[%clk 0:02:59]} 8. d5 {[%clk 0:02:53]}  Ne7 {[%clk 0:02:58]} 9. Bg5 {[%clk 0:02:53]}  h6 {[%clk 0:02:57]} 10. Be3 {[%clk 0:02:53]}  Ng4 {[%clk 0:02:55]} 11. Bd2 {[%clk 0:02:53]}  f5 {[%clk 0:02:55]} 12. exf5 {[%clk 0:02:51]}  gxf5 {[%clk 0:02:56]} 13. Nh4 {[%clk 0:02:52]}  Nf6 {[%clk 0:02:51]} 14. g3 {[%clk 0:02:48]}  f4 {[%clk 0:02:42]} 15. gxf4 {[%clk 0:02:48]}  Nf5 {[%clk 0:02:19]} 16. Ng6 {[%clk 0:02:39]}  Re8 {[%clk 0:01:38]} 17. fxe5 {[%clk 0:02:38]}  dxe5 {[%clk 0:01:37]} 18. Kh1 {[%clk 0:02:38]}  Kh7 {[%clk 0:01:37]} 19. Rg1 {[%clk 0:02:37]}  e4 {[%clk 0:01:33]} 20. Bf4 {[%clk 0:02:21]}  Nd7 {[%clk 0:01:27]} 21. Bg4 {[%clk 0:01:59]}  Nc5 {[%clk 0:01:24]} 22. Bxf5 {[%clk 0:01:36]}  Bxf5 {[%clk 0:01:23]} 23. Qh5 {[%clk 0:01:37]}  Qf6 {[%clk 0:01:18]} 24. Nh4 {[%clk 0:01:23]}  Bd7 {[%clk 0:00:54]} 25. Rxg7+ {[%clk 0:01:16]}  Qxg7 {[%clk 0:00:52]} 26. Rg1 {[%clk 0:01:17]}  Qf6 {[%clk 0:00:42]} 27. Ng6 {[%clk 0:01:08]}  Qg7 {[%clk 0:00:29]} 28. Ne5 {[%clk 0:00:37]}  Qf6 {[%clk 0:00:22]} 29. Ng6 {[%clk 0:00:28]}  Qg7 {[%clk 0:00:20]} 30. Ne5 {[%clk 0:00:19]}  Qf6 {[%clk 0:00:20]} 31. Ng6 {[%clk 0:00:13]} 1/2-1/2


[Site "https://www.chess.com"]

[Event "Titled Tuesday Blitz November 15 Early 2022"]
[White "Janaszak, Dawid"]
[Black "Boros, Denes"]
[WhiteFideId "1119206"]
[BlackFideId "722340"]
[WhiteElo "2226"]
[BlackElo "2464"]
[Result "0-1"]
[Round "08"]
[TimeControl "180+1"]
[Date "2022.11.16"]
[WhiteClock "0:00:16"]
[BlackClock "0:01:43"]

1. e4 {[%clk 0:03:00]}  g6 {[%clk 0:03:00]} 2. Nc3 {[%clk 0:03:00]}  c6 {[%clk 0:03:01]} 3. h4 {[%clk 0:02:52]}  h5 {[%clk 0:02:58]} 4. Bc4 {[%clk 0:02:51]}  e6 {[%clk 0:02:55]} 5. d4 {[%clk 0:02:47]}  d5 {[%clk 0:02:55]} 6. Bb3 {[%clk 0:02:46]}  Nf6 {[%clk 0:02:52]} 7. Bg5 {[%clk 0:02:43]}  Be7 {[%clk 0:02:52]} 8. e5 {[%clk 0:02:39]}  Nfd7 {[%clk 0:02:49]} 9. Nh3 {[%clk 0:02:39]}  c5 {[%clk 0:02:46]} 10. f4 {[%clk 0:02:16]}  a6 {[%clk 0:02:38]} 11. dxc5 {[%clk 0:02:12]}  Nc6 {[%clk 0:02:30]} 12. Qf3 {[%clk 0:01:57]}  Nd4 {[%clk 0:02:21]} 13. Qd3 {[%clk 0:01:52]}  Nxb3 {[%clk 0:02:18]} 14. axb3 {[%clk 0:01:51]}  Nxc5 {[%clk 0:02:19]} 15. Qf3 {[%clk 0:01:44]}  Bd7 {[%clk 0:02:14]} 16. b4 {[%clk 0:01:32]}  Ne4 {[%clk 0:02:13]} 17. Nxe4 {[%clk 0:01:31]}  dxe4 {[%clk 0:02:13]} 18. Qb3 {[%clk 0:01:00]}  Bc6 {[%clk 0:02:07]} 19. Rd1 {[%clk 0:00:56]}  Qb6 {[%clk 0:02:04]} 20. Bxe7 {[%clk 0:00:33]}  Kxe7 {[%clk 0:02:05]} 21. Kd2 {[%clk 0:00:19]}  a5 {[%clk 0:01:51]} 22. bxa5 {[%clk 0:00:19]}  Rhd8+ {[%clk 0:01:45]} 23. Kc1 {[%clk 0:00:18]}  Qxa5 {[%clk 0:01:45]} 24. Rxd8 {[%clk 0:00:16]}  Qa1+ {[%clk 0:01:43]} 25. Kd2 {[%clk 0:00:16]}  Rxd8+ {[%clk 0:01:43]} 0-1


[Site "https://www.chess.com"]

[Event "Titled Tuesday Blitz November 15 Early 2022"]
[White "Jones, Gawain C B"]
[Black "Mladenovic, Stefan"]
[WhiteFideId "409561"]
[BlackFideId "942227"]
[WhiteElo "2657"]
[BlackElo "2337"]
[Result "1-0"]
[Round "08"]
[TimeControl "180+1"]
[Date "2022.11.15"]
[WhiteClock "0:00:14"]
[BlackClock "0:00:10"]

1. Nf3 {[%clk 0:02:54]}  Nf6 {[%clk 0:02:57]} 2. g3 {[%clk 0:02:54]}  d5 {[%clk 0:02:56]} 3. Bg2 {[%clk 0:02:54]}  e6 {[%clk 0:02:57]} 4. O-O {[%clk 0:02:54]}  Be7 {[%clk 0:02:58]} 5. c4 {[%clk 0:02:55]}  O-O {[%clk 0:02:58]} 6. b3 {[%clk 0:02:54]}  b6 {[%clk 0:02:56]} 7. Bb2 {[%clk 0:02:54]}  Bb7 {[%clk 0:02:57]} 8. cxd5 {[%clk 0:02:55]}  Nxd5 {[%clk 0:02:55]} 9. d4 {[%clk 0:02:54]}  Nd7 {[%clk 0:02:54]} 10. Nbd2 {[%clk 0:02:50]}  c5 {[%clk 0:02:53]} 11. Nc4 {[%clk 0:02:48]}  Rc8 {[%clk 0:02:45]} 12. Rc1 {[%clk 0:02:41]}  N7f6 {[%clk 0:02:35]} 13. a3 {[%clk 0:02:36]}  a6 {[%clk 0:02:29]} 14. Nce5 {[%clk 0:02:31]}  b5 {[%clk 0:02:26]} 15. Qd3 {[%clk 0:02:28]}  cxd4 {[%clk 0:02:08]} 16. Nxd4 {[%clk 0:02:26]}  Rxc1 {[%clk 0:02:05]} 17. Rxc1 {[%clk 0:02:27]}  Qa8 {[%clk 0:02:04]} 18. Nec6 {[%clk 0:02:19]}  Re8 {[%clk 0:01:49]} 19. e4 {[%clk 0:02:13]}  Nb6 {[%clk 0:01:44]} 20. Nxe7+ {[%clk 0:01:58]}  Rxe7 {[%clk 0:01:45]} 21. f3 {[%clk 0:01:57]}  Re8 {[%clk 0:01:30]} 22. Qe3 {[%clk 0:01:57]}  Nbd7 {[%clk 0:01:29]} 23. g4 {[%clk 0:01:50]}  h6 {[%clk 0:01:28]} 24. h4 {[%clk 0:01:44]}  Rc8 {[%clk 0:01:27]} 25. Bf1 {[%clk 0:01:42]}  Rxc1 {[%clk 0:01:23]} 26. Qxc1 {[%clk 0:01:42]}  Qa7 {[%clk 0:01:18]} 27. Qe3 {[%clk 0:01:39]}  Qb6 {[%clk 0:01:16]} 28. g5 {[%clk 0:01:29]}  hxg5 {[%clk 0:01:16]} 29. hxg5 {[%clk 0:01:30]}  Nh5 {[%clk 0:01:11]} 30. g6 {[%clk 0:01:27]}  fxg6 {[%clk 0:01:07]} 31. Bh3 {[%clk 0:01:26]}  Nf8 {[%clk 0:01:04]} 32. Nc2 {[%clk 0:01:18]}  Qxe3+ {[%clk 0:00:59]} 33. Nxe3 {[%clk 0:01:17]}  Nf4 {[%clk 0:00:59]} 34. Bf1 {[%clk 0:01:16]}  Nd7 {[%clk 0:00:52]} 35. Bd4 {[%clk 0:01:10]}  Kf7 {[%clk 0:00:50]} 36. Ng4 {[%clk 0:01:08]}  g5 {[%clk 0:00:48]} 37. Kf2 {[%clk 0:01:07]}  Bc6 {[%clk 0:00:48]} 38. Ke3 {[%clk 0:01:06]}  Ng6 {[%clk 0:00:41]} 39. Kd2 {[%clk 0:00:59]}  e5 {[%clk 0:00:41]} 40. Be3 {[%clk 0:00:58]}  Nf4 {[%clk 0:00:40]} 41. Kc3 {[%clk 0:00:52]}  Ke6 {[%clk 0:00:40]} 42. Kb4 {[%clk 0:00:51]}  Kd6 {[%clk 0:00:29]} 43. Ka5 {[%clk 0:00:43]}  Bb7 {[%clk 0:00:29]} 44. a4 {[%clk 0:00:26]}  bxa4 {[%clk 0:00:27]} 45. bxa4 {[%clk 0:00:27]}  Nb8 {[%clk 0:00:25]} 46. Kb6 {[%clk 0:00:24]}  Bc8 {[%clk 0:00:25]} 47. Bc5+ {[%clk 0:00:22]}  Kd7 {[%clk 0:00:20]} 48. Nxe5+ {[%clk 0:00:20]}  Ke6 {[%clk 0:00:21]} 49. Bd4 {[%clk 0:00:20]}  Nd7+ {[%clk 0:00:17]} 50. Nxd7 {[%clk 0:00:20]}  Bxd7 {[%clk 0:00:18]} 51. a5 {[%clk 0:00:18]}  Bc8 {[%clk 0:00:18]} 52. Bxa6 {[%clk 0:00:17]}  Bxa6 {[%clk 0:00:19]} 53. Kxa6 {[%clk 0:00:18]}  Kd6 {[%clk 0:00:20]} 54. Kb7 {[%clk 0:00:17]}  Ne6 {[%clk 0:00:21]} 55. a6 {[%clk 0:00:14]}  Nxd4 {[%clk 0:00:15]} 56. a7 {[%clk 0:00:14]}  Ne6 {[%clk 0:00:10]} 57. a8=Q {[%clk 0:00:14]}  Nc5+ {[%clk 0:00:11]} 58. Kb6 {[%clk 0:00:13]}  Nd7+ {[%clk 0:00:11]} 59. Kb5 {[%clk 0:00:14]}  Ne5 {[%clk 0:00:10]} 60. Qd5+ {[%clk 0:00:14]} 1-0


[Site "https://www.chess.com"]

[Event "Titled Tuesday Blitz November 15 Early 2022"]
[White "Kaplan, Avi Harrison"]
[Black "Odegov, Artem"]
[WhiteFideId "30934559"]
[BlackFideId "34183644"]
[WhiteElo "1983"]
[BlackElo "2298"]
[Result "0-1"]
[Round "08"]
[TimeControl "180+1"]
[Date "2022.11.16"]
[WhiteClock "0:00:02"]
[BlackClock "0:00:17"]

1. a3 {[%clk 0:03:00]}  d5 {[%clk 0:02:59]} 2. Nf3 {[%clk 0:02:54]}  c5 {[%clk 0:02:58]} 3. b4 {[%clk 0:02:53]}  Nc6 {[%clk 0:02:59]} 4. b5 {[%clk 0:02:49]}  Nd4 {[%clk 0:02:47]} 5. Bb2 {[%clk 0:02:09]}  Nxf3+ {[%clk 0:02:42]} 6. exf3 {[%clk 0:02:10]}  d4 {[%clk 0:02:38]} 7. Bc4 {[%clk 0:02:07]}  Nf6 {[%clk 0:02:33]} 8. O-O {[%clk 0:02:07]}  Bf5 {[%clk 0:02:29]} 9. Re1 {[%clk 0:02:05]}  e6 {[%clk 0:02:24]} 10. d3 {[%clk 0:02:00]}  Bd6 {[%clk 0:02:23]} 11. Nd2 {[%clk 0:01:55]}  Qc7 {[%clk 0:02:22]} 12. h3 {[%clk 0:01:53]}  h5 {[%clk 0:02:17]} 13. Ne4 {[%clk 0:01:52]}  O-O-O {[%clk 0:02:11]} 14. a4 {[%clk 0:01:49]}  Bxe4 {[%clk 0:01:44]} 15. fxe4 {[%clk 0:01:43]}  Nd7 {[%clk 0:01:44]} 16. a5 {[%clk 0:01:43]}  Ne5 {[%clk 0:01:42]} 17. b6 {[%clk 0:01:39]}  axb6 {[%clk 0:01:41]} 18. axb6 {[%clk 0:01:21]}  Qxb6 {[%clk 0:01:40]} 19. Bb3 {[%clk 0:01:14]}  g5 {[%clk 0:01:33]} 20. Bc1 {[%clk 0:01:07]}  f6 {[%clk 0:01:30]} 21. Bd2 {[%clk 0:01:07]}  Rde8 {[%clk 0:01:19]} 22. Ba5 {[%clk 0:00:57]}  Qb5 {[%clk 0:01:18]} 23. Ba4 {[%clk 0:00:51]}  Qxa5 {[%clk 0:01:07]} 24. Bxe8 {[%clk 0:00:52]}  Qd8 {[%clk 0:01:07]} 25. Ra8+ {[%clk 0:00:49]}  Bb8 {[%clk 0:01:06]} 26. Ba4 {[%clk 0:00:44]}  Qd6 {[%clk 0:01:02]} 27. Qb1 {[%clk 0:00:29]}  g4 {[%clk 0:00:59]} 28. h4 {[%clk 0:00:27]}  Nf3+ {[%clk 0:00:31]} 29. Kf1 {[%clk 0:00:13]}  Nd2+ {[%clk 0:00:28]} 30. Ke2 {[%clk 0:00:14]}  Nxb1 {[%clk 0:00:28]} 31. Rxb1 {[%clk 0:00:15]}  g3 {[%clk 0:00:25]} 32. f3 {[%clk 0:00:12]}  Qf4 {[%clk 0:00:24]} 33. Rb6 {[%clk 0:00:07]}  Qe3+ {[%clk 0:00:23]} 34. Kd1 {[%clk 0:00:08]}  Qg1+ {[%clk 0:00:19]} 35. Kd2 {[%clk 0:00:07]}  Qxg2+ {[%clk 0:00:19]} 36. Kc1 {[%clk 0:00:08]}  Qf1+ {[%clk 0:00:19]} 37. Kb2 {[%clk 0:00:09]}  g2 {[%clk 0:00:19]} 38. Bc6 {[%clk 0:00:06]}  bxc6 {[%clk 0:00:16]} 39. Raxb8+ {[%clk 0:00:02]}  Kc7 {[%clk 0:00:16]} 40. R6b7+ {[%clk 0:00:03]}  Kd6 {[%clk 0:00:16]} 41. Rxh8 {[%clk 0:00:03]}  g1=Q {[%clk 0:00:16]} 42. e5+ {[%clk 0:00:02]}  Kxe5 {[%clk 0:00:16]} 43. Rxh5+ {[%clk 0:00:03]}  f5 {[%clk 0:00:16]} 44. f4+ {[%clk 0:00:02]}  Qxf4 {[%clk 0:00:16]} 45. Rb3 {[%clk 0:00:02]}  Qfc1+ {[%clk 0:00:16]} 46. Ka2 {[%clk 0:00:02]}  Qa1# {[%clk 0:00:17]} 0-1


[Site "https://www.chess.com"]